bitfinex/quotes_ETHUSD_20241223
["timestamp","ask_amount","ask_price","bid_price","bid_amount"]
[1734979611742,0.25,3319.7,3319.2,0.0527653]
[1734979612235,0.5,3319.7,3319.2,0.0527653]
[1734979612426,0.25,3319.5,3318.7,0.7641]
[1734979612609,0.25,3319.5,3315.3,0.11353306]
[1734979612610,0.25,3319.1,3318.3,0.9326579]
[1734979612778,0.25,3319.5,3318.9,3.01303]
[1734979612979,0.5,3319.5,3319.0,0.05288926]
[1734979613300,0.25,3319.3,3318.6,3.01325]
[1734979613516,0.25,3319.3,3319.1,0.05282727]
[1734979613695,0.25,3319.3,3318.7,3.01322]
[1734979613900,0.25,3319.3,3319.2,0.0527653]
[1734979614098,0.5,3319.5,3318.8,0.301322]
[1734979614301,0.25,3319.3,3319.2,0.0527653]
[1734979614505,0.25,3319.3,3318.8,0.301322]
[1734979614726,0.5,3319.5,3319.2,0.0527653]
[1734979615024,0.7559,3319.7,3318.6,3.01323]
[1734979615025,0.5,3319.3,3318.6,3.01323]
[1734979615176,0.5,3319.3,3318.7,0.301323]
[1734979615379,0.5,3319.3,3318.7,0.35439822]
[1734979616396,0.5,3319.3,3318.7,3.36759822]
[1734979617709,0.5,3319.3,3318.8,3.01313]
[1734979618117,0.5,3319.3,3318.9,0.05295124]
[1734979619026,0.5,3319.3,3318.6,3.01329]
[1734979619229,0.25,3319.0,3318.7,0.05307522]
[1734979619436,0.25,3319.0,3318.4,3.01349]
[1734979619740,0.25,3319.3,3318.3,7.9e-06]
[1734979619741,7.2998,3318.4,3318.3,7.9e-06]
[1734979620036,11.38497285,3318.4,3318.3,7.9e-06]
[1734979620343,12.10304394,3318.4,3318.3,7.9e-06]
[1734979620487,12.06884643,3318.4,3318.3,7.9e-06]
[1734979620883,11.59668245,3318.4,3318.3,7.9e-06]
[1734979627005,8.51010439,3318.4,3318.3,7.9e-06]
[1734979627245,0.5,3318.4,3318.3,7.9e-06]
[1734979627404,0.25,3318.4,3318.3,7.9e-06]
[1734979627851,3.2635,3318.4,3318.3,7.9e-06]
[1734979628626,3.29359522,3318.4,3318.3,7.9e-06]
[1734979629046,3.2635,3318.4,3318.3,7.9e-06]
[1734979629645,3.29359522,3318.4,3318.3,7.9e-06]
[1734979630059,3.2635,3318.4,3318.3,7.9e-06]
[1734979630240,3.29359522,3318.4,3318.3,7.9e-06]
[1734979630724,3.2635,3318.4,3318.3,7.9e-06]
[1734979630921,0.5,3318.7,3318.3,7.9e-06]
[1734979631331,0.5,3318.4,3318.3,7.9e-06]
[1734979631651,3.98071303,3318.4,3318.3,7.9e-06]
[1734979632051,0.5,3318.4,3318.3,7.9e-06]
[1734979634862,0.25,3318.8,3318.4,0.8078]
[1734979635065,0.25,3318.6,3318.3,7.9e-06]
[1734979635366,0.5,3318.4,3318.3,7.9e-06]
[1734979635670,4.276,3318.4,3318.3,7.9e-06]
[1734979635820,5.04235303,3318.4,3318.3,7.9e-06]
[1734979636021,5.01225781,3318.4,3318.3,7.9e-06]
[1734979636647,1.2625,3318.4,3318.3,7.9e-06]
[1734979636865,0.5,3318.4,3318.3,7.9e-06]
[1734979637172,0.5,3318.4,3318.3,0.0545685]
[1734979637475,0.5,3318.4,3318.3,7.9e-06]
[1734979637679,0.5,3318.4,3318.3,0.0545685]
[1734979638173,0.25,3318.4,3318.3,0.0545685]
[1734979638562,0.5,3318.4,3318.3,7.9e-06]
[1734979638731,0.5,3318.4,3318.3,0.05467221]
[1734979638931,0.5,3318.4,3318.3,7.9e-06]
[1734979639132,0.5,3318.4,3318.3,0.05467221]
[1734979639347,0.5,3318.4,3318.3,7.9e-06]
[1734979639573,0.5,3318.4,3318.3,0.05457369]
[1734979639877,0.5,3318.4,3318.3,0.05454776]
[1734979640807,0.85134,3318.4,3318.3,7.9e-06]
[1734979641306,4.57814,3318.4,3318.3,7.9e-06]
[1734979643259,0.45,3318.4,3318.3,7.9e-06]
[1734979643459,0.25,3318.6,3318.3,7.9e-06]
[1734979643720,0.2,3318.5,3318.4,0.05461786]
[1734979645382,4.00919522,3318.5,3318.4,0.05461786]
[1734979645566,4.00919522,3318.5,3318.3,7.9e-06]
[1734979645761,0.42591952,3318.4,3318.3,7.9e-06]
[1734979646164,3.71951474,3318.4,3318.3,7.9e-06]
[1734979646485,3.68941952,3318.4,3318.3,0.2400079]
[1734979647106,3.2635,3318.4,3318.3,0.2400079]
[1734979649964,2.4959,3318.4,3318.3,0.2400079]
[1734979650922,6.3245,3318.4,3318.3,0.2400079]
[1734979651309,3.8286,3318.4,3318.3,0.2400079]
[1734979651524,0.85869522,3318.4,3318.3,7.9e-06]
[1734979651726,1.57322255,3318.4,3318.3,7.9e-06]
[1734979652315,7.97471986,3318.4,3318.3,7.9e-06]
[1734979652641,7.94462464,3318.4,3318.3,7.9e-06]
[1734979652803,3.01468,3317.1,3317.0,1.25]
[1734979652999,6.516148,3317.1,3317.0,1.25]
[1734979653240,7.315548,3317.1,3317.0,6.3e-06]
[1734979653409,6.97188,3316.0,3315.9,0.3783879]
[1734979653741,6.97188,3316.0,3315.9,0.43220578]
[1734979653742,10.05845806,3316.0,3315.9,0.43220578]
[1734979653943,6.97188,3316.0,3315.9,0.43220578]
[1734979654149,3.01521,3316.6,3315.9,0.43220578]
[1734979654150,0.2,3316.2,3315.9,0.3783879]
[1734979654630,0.2,3316.6,3316.0,3.07001235]
[1734979654829,0.2,3316.9,3316.1,1.1728907]
[1734979655042,0.2,3317.1,3316.1,0.7979]
[1734979655344,0.2,3317.1,3316.8,0.7979]
[1734979655513,1.24457417,3317.0,3316.8,0.7979]
[1734979655717,1.24457417,3317.0,3316.9,0.05425562]
[1734979656115,2.06737417,3317.0,3316.9,0.05425562]
[1734979656430,1.24457417,3317.0,3316.9,0.05425562]
[1734979656747,1.24457417,3317.0,3316.4,0.7834]
[1734979656748,0.2,3316.7,3316.4,0.7834]
[1734979657147,0.2,3316.9,3316.5,0.05435334]
[1734979657311,0.2,3316.9,3316.4,0.7834]
[1734979657531,0.2,3317.2,3316.5,0.05435334]
[1734979657718,0.2,3317.2,3316.5,3.06954334]
[1734979657915,0.2,3317.2,3316.6,0.38529433]
[1734979658201,0.2,3317.2,3316.7,0.05401119]
[1734979658397,0.2,3317.2,3316.4,0.7834]
[1734979658703,0.2,3317.2,3316.5,0.05412496]
[1734979658912,0.2,3316.7,3316.5,0.05412496]
[1734979659852,0.2,3316.5,3315.9,0.3783879]
[1734979660158,3.21526,3316.5,3316.0,0.05443539]
[1734979660813,0.2,3316.2,3316.0,0.05443539]
[1734979661008,0.2,3316.2,3316.0,3.07009539]
[1734979661212,0.2,3316.7,3316.2,0.801]
[1734979661432,0.2,3316.9,3316.3,0.05434773]
[1734979661632,0.2,3317.1,3316.5,3.01522]
[1734979661829,0.2,3316.7,3316.3,3.06972773]
[1734979662027,0.2,3317.1,3316.6,0.0542134]
[1734979662232,0.2,3316.9,3316.7,0.05415133]
[1734979662446,0.2,3317.1,3316.4,3.01526]
[1734979662649,0.2,3316.9,3316.5,0.35580147]
[1734979663053,0.2,3317.1,3316.5,3.06947547]
[1734979663248,0.2,3316.7,3316.5,3.06947547]
[1734979663566,0.2,3317.1,3316.5,3.06947547]
[1734979663735,0.2,3316.8,3316.5,3.06947547]
[1734979665265,0.2,3317.4,3316.7,0.8154]
[1734979665466,0.2,3317.4,3316.9,3.01478]
[1734979665627,0.2,3317.4,3316.7,0.8154]
[1734979665628,0.2,3317.4,3317.0,0.35512136]
[1734979665833,0.2,3317.4,3317.0,0.05364336]
[1734979666036,0.2,3317.6,3316.8,0.03014332]
[1734979666215,0.2,3317.8,3317.3,3.01441]
[1734979666418,0.2,3317.5,3317.4,0.86871733]
[1734979666618,0.2,3317.5,3317.4,1.25703006]
[1734979666917,0.2,3317.7,3317.4,1.25703006]
[1734979667114,0.2,3317.5,3317.4,1.25703006]
[1734979667374,0.2,3317.7,3317.4,1.25703006]
[1734979667547,0.2,3317.7,3317.4,4.27142006]
[1734979667862,0.2,3317.7,3317.5,0.42714201]
[1734979668070,0.2,3317.7,3317.6,0.05319325]
[1734979668366,0.2,3317.7,3317.4,0.8154]
[1734979668523,0.2,3317.8,3317.4,0.8154]
[1734979668724,0.2,3317.5,3317.4,0.8154]
[1734979668955,0.2,3317.7,3317.4,4.212778]
[1734979669730,0.2,3317.7,3317.4,1.198388]
[1734979670032,0.2,3317.7,3317.4,0.8154]
[1734979670241,0.2,3317.7,3317.6,3.01422]
[1734979672420,0.2,3318.5,3317.4,0.8154]
[1734979672619,0.2,3318.6,3318.4,0.7914]
[1734979673023,0.2,3318.6,3317.8,0.7914]
[1734979673261,0.2,3318.2,3317.8,0.7914]
[1734979674049,0.2,3317.9,3317.4,0.8154]
[1734979674360,0.2,3317.7,3316.9,0.8154]
[1734979674691,0.2,3318.1,3317.6,0.8154]
[1734979674894,0.2,3318.2,3317.6,0.8154]
[1734979675092,0.2,3318.3,3317.6,0.8154]
[1734979675389,0.2,3318.3,3317.7,0.05261768]
[1734979675538,0.2,3318.3,3317.7,0.44085045]
[1734979676460,0.2,3318.3,3317.7,3.45491045]
[1734979676865,0.2,3318.3,3317.8,3.01402]
[1734979677052,0.2,3318.3,3317.9,0.05182451]
[1734979677575,0.2,3318.3,3317.7,0.38823277]
[1734979677812,0.2,3318.3,3318.0,0.05176249]
[1734979678012,0.2,3318.3,3317.7,0.38823277]
[1734979678316,0.2,3318.3,3317.8,0.42178328]
[1734979678624,0.2,3318.3,3317.9,0.05182451]
[1734979679138,0.2,3318.3,3318.0,0.05176249]
[1734979679620,0.2,3318.3,3317.8,3.01401]
[1734979679823,0.2,3318.3,3318.1,0.05170047]
[1734979679973,0.2,3318.3,3317.8,3.01401]
[1734979680181,0.2,3318.3,3318.2,0.05163845]
[1734979680380,0.2,3318.3,3317.6,3.82959]
[1734979680693,0.2,3318.0,3316.8,8.63120455]
[1734979680898,0.2,3317.4,3316.9,0.7994]
[1734979681245,0.2,3317.4,3317.3,3.01449]
[1734979681522,0.2,3317.4,3317.3,3.36813054]
[1734979681691,0.992,3318.2,3317.4,3.0144]
[1734979681891,0.2,3318.4,3317.7,3.01412]
[1734979682231,1.0081,3317.8,3316.9,0.8154]
[1734979682445,0.2,3317.4,3316.4,1.88133847]
[1734979682731,3.01386,3318.0,3316.4,1.88133847]
[1734979682732,1.0081,3317.1,3316.4,1.88133847]
[1734979683084,1.0081,3317.1,3316.5,1.64790801]
[1734979683292,0.2,3317.1,3316.5,1.64790801]
[1734979683496,3.01369,3318.2,3316.8,3.01487]
[1734979683497,0.2,3317.3,3316.8,3.01487]
[1734979683916,0.2,3317.1,3316.8,3.01487]
[1734979684081,0.2,3317.1,3316.8,3.316357]
[1734979684515,0.2,3317.5,3316.8,3.316357]
[1734979684695,0.2,3317.5,3316.8,0.301487]
[1734979684899,0.2,3317.7,3317.2,3.01457]
[1734979685151,0.2,3317.5,3317.2,3.01457]
[1734979686312,0.2,3317.5,3316.8,3.0149]
[1734979686680,0.2,3317.5,3317.1,3.01467]
[1734979687428,0.2,3317.2,3316.1,1.59778848]
[1734979687729,0.2,3316.7,3316.1,1.25294015]
[1734979688485,0.2,3316.5,3316.1,1.25294015]
[1734979688803,0.2,3316.2,3316.1,1.25294015]
[1734979689515,0.2,3316.2,3315.9,0.3783879]
[1734979689825,0.2,3316.0,3315.9,0.3783879]
[1734979690231,1.032,3316.0,3315.9,0.3783879]
[1734979690945,0.2,3316.0,3315.9,0.3783879]
[1734979691303,0.2,3316.0,3315.9,0.42917536]
[1734979692950,0.2,3316.0,3315.9,0.3783879]
[1734979693508,0.2,3316.0,3315.9,0.42925316]
[1734979694354,0.2,3316.2,3315.9,0.42925316]
[1734979694713,0.2,3316.0,3315.9,0.42925316]
[1734979695110,0.2,3316.3,3315.9,0.42925316]
[1734979695445,0.2,3316.6,3315.9,0.42925316]
[1734979695611,0.8076,3317.0,3315.9,0.42925316]
[1734979695612,1.0076,3317.0,3316.3,3.0154]
[1734979695810,0.2,3317.0,3316.4,0.30154]
[1734979696011,1.24457417,3317.1,3316.5,0.03014682]
[1734979696215,0.2,3317.2,3316.5,3.0152]
[1734979696473,0.2,3317.2,3316.6,0.05021801]
[1734979696930,0.2,3316.9,3316.6,0.05021801]
[1734979697426,1.0076,3316.9,3316.6,0.05021801]
[1734979697748,1.0076,3316.9,3316.7,0.04999002]
[1734979698263,1.0076,3316.9,3316.1,0.7895]
[1734979698563,3.0154,3316.3,3316.2,0.05030041]
[1734979698725,3.51694,3316.3,3316.2,0.05030041]
[1734979698909,3.51694,3316.3,3315.9,0.3783879]
[1734979699116,0.2,3316.0,3315.9,0.3783879]
[1734979701444,4.00258,3316.0,3315.9,0.3783879]
[1734979703332,7.03267522,3316.0,3315.9,7.9e-06]
[1734979703556,7.96748098,3316.0,3315.9,7.9e-06]
[1734979704150,3.21622,3315.4,3315.3,0.11353306]
[1734979704346,7.02732,3315.4,3315.3,0.11353306]
[1734979705046,1.0111,3315.4,3315.3,0.11353306]
[1734979705264,7.02732,3315.4,3315.3,0.11353306]
[1734979705545,8.030052,3315.4,3315.3,0.11353306]
[1734979708825,8.030052,3315.4,3315.3,3.06e-06]
[1734979716709,5.030052,3315.4,3315.3,3.06e-06]
[1734979716919,1.0111,3315.4,3315.3,3.06e-06]
[1734979717419,4.02732,3315.4,3315.3,3.06e-06]
[1734979718346,0.2,3315.4,3315.3,3.06e-06]
[1734979718553,5.63218455,3315.9,3315.3,0.79420306]
[1734979718554,0.2,3315.9,3315.3,0.79420306]
[1734979718706,0.2,3315.9,3315.4,0.05343224]
[1734979719106,0.2,3315.9,3315.3,0.79420306]
[1734979719360,0.2,3316.1,3315.4,0.05314679]
[1734979719521,0.2,3316.7,3316.3,0.7942]
[1734979719727,0.2,3316.5,3316.4,0.4334948]
[1734979720163,0.2,3316.5,3315.4,0.7696]
[1734979720654,0.2,3315.9,3315.5,0.05308467]
[1734979720853,0.2,3315.7,3315.5,0.05308467]
[1734979721060,0.2,3315.9,3315.5,0.05308467]
[1734979721227,0.2,3315.7,3315.5,0.05308467]
[1734979721811,3.21579,3315.9,3315.5,0.05308467]
[1734979722052,0.2,3315.6,3315.5,0.05308467]
[1734979722256,0.2,3315.6,3315.3,3.06e-06]
[1734979722554,0.2,3315.6,3315.4,0.05314679]
[1734979722861,3.01613,3315.5,3315.4,0.05314679]
[1734979723272,0.2,3315.4,3315.3,3.06e-06]
[1734979723475,3.21622,3315.4,3315.3,3.06e-06]
[1734979723632,3.54085152,3315.4,3315.3,3.06e-06]
[1734979725446,4.36825152,3315.4,3315.3,3.06e-06]
[1734979725777,7.36825152,3315.4,3315.3,3.06e-06]
[1734979725964,10.34271475,3315.4,3315.3,3.06e-06]
[1734979726490,6.2165,3315.1,3315.0,9.6e-07]
[1734979726774,10.01836323,3315.1,3315.0,9.6e-07]
[1734979729664,0.2,3313.6,3313.5,0.7696]
[1734979729979,0.2,3313.6,3313.5,0.82397402]
[1734979731148,0.2,3313.6,3313.5,0.05437402]
[1734979731345,0.2,3313.6,3313.2,0.789]
[1734979731557,0.2,3313.6,3313.3,0.05449841]
[1734979731775,0.2,3313.6,3313.2,0.789]
[1734979731982,0.2,3313.6,3313.4,0.05443621]
[1734979732277,0.2,3313.6,3313.3,0.05449841]
[1734979732574,0.2,3313.6,3313.4,0.05443621]
[1734979733083,0.2,3313.6,3313.2,0.789]
[1734979733229,0.2,3313.6,3313.5,0.05341895]
[1734979733432,0.2,3313.6,3313.2,0.789]
[1734979733871,0.2,3313.6,3313.3,0.05354334]
[1734979734230,0.2,3313.6,3313.2,0.789]
[1734979734459,0.2,3313.6,3313.4,0.05348115]
[1734979734655,0.2,3313.6,3313.3,0.05354334]
[1734979734898,0.2,3313.6,3313.5,0.05341895]
[1734979735259,0.2,3313.9,3313.5,3.07136895]
[1734979735459,0.2,3314.1,3313.8,3.01768]
[1734979735900,0.2,3314.1,3313.9,0.05229379]
[1734979736271,0.2,3313.8,3313.4,1.16797533]
[1734979736456,3.0,3314.6,3313.4,1.16797533]
[1734979736457,0.2,3313.6,3313.4,0.7819]
[1734979736660,0.2,3313.8,3313.5,0.05254252]
[1734979737107,0.2,3313.6,3313.5,0.05254252]
[1734979737473,0.2,3313.6,3313.2,3.01819]
[1734979737710,0.2,3313.6,3313.5,0.05254252]
[1734979738005,0.2,3313.6,3313.2,3.01819]
[1734979738162,0.2,3313.6,3313.5,0.05254252]
[1734979738357,0.2,3313.6,3313.2,0.379289]
[1734979738562,0.2,3313.6,3313.3,0.05266691]
[1734979738805,0.2,3313.6,3313.2,0.379289]
[1734979739011,0.2,3313.6,3313.4,0.05260471]
[1734979739168,0.2,3313.6,3313.3,0.05266691]
[1734979739169,0.2,3313.4,3313.3,0.05266691]
[1734979739364,0.7933,3313.5,3312.4,0.7877]
[1734979739365,0.2,3313.1,3312.4,0.7877]
[1734979739567,0.2,3312.1,3311.9,0.39152893]
[1734979739784,0.2,3312.6,3311.9,0.65279163]
[1734979740122,0.2,3312.6,3312.1,3.01921]
[1734979740282,0.2,3313.0,3312.3,0.7996]
[1734979740461,0.2,3312.8,3311.9,1.45239163]
[1734979740662,0.2,3312.8,3312.3,3.01902]
[1734979740980,0.2,3312.8,3312.4,0.301902]
[1734979741200,0.2,3312.8,3312.5,0.7996]
[1734979741404,0.2,3312.6,3312.5,0.7996]
[1734979741716,0.2,3312.6,3312.2,0.7996]
[1734979743491,0.2,3312.6,3311.9,4.47171163]
[1734979743819,0.2,3312.3,3311.9,4.47171163]
[1734979744028,0.2,3312.1,3312.0,0.44717116]
[1734979744219,0.2,3312.1,3311.9,0.7996]
[1734979744421,0.2,3312.1,3310.9,3.02028]
[1734979744622,0.2,3312.0,3311.1,3.79528]
[1734979744829,0.2,3312.4,3311.8,0.7752]
[1734979745128,0.2,3312.4,3311.9,3.01941]
[1734979745324,0.2,3312.4,3312.0,0.379461]
[1734979746039,3.01812,3313.4,3312.0,0.379461]
[1734979746040,0.2,3312.5,3312.0,0.379461]
[1734979746194,0.2,3312.5,3312.3,3.01902]
[1734979746737,0.2,3312.5,3311.8,0.7752]
[1734979747032,0.2,3312.5,3312.1,3.01919]
[1734979747749,0.2,3312.5,3311.8,3.7947]
[1734979748039,0.2,3312.4,3311.8,0.7752]
[1734979748245,0.2,3312.4,3311.9,3.01933]
[1734979748442,0.2,3312.4,3311.9,3.41563879]
[1734979748644,0.2,3312.8,3311.9,3.41563879]
[1734979748940,0.2,3313.0,3312.0,0.773]
[1734979749093,1.21262868,3313.7,3312.2,3.01907]
[1734979749094,0.2,3313.4,3312.2,3.01907]
[1734979749295,0.2,3313.4,3313.2,3.01814]
[1734979749499,0.2,3314.0,3313.3,0.773]
[1734979749731,0.2,3314.0,3313.8,3.01767]
[1734979749947,0.2,3314.0,3313.3,3.79109]
[1734979750531,1.21262868,3314.5,3313.8,3.01767]
[1734979750532,0.2,3314.2,3313.8,3.01767]
[1734979750735,0.62062868,3314.5,3313.9,0.301767]
[1734979750957,0.2,3314.7,3314.1,0.773]
[1734979751249,1.24457417,3314.8,3314.7,3.01686]
[1734979751414,1.44457417,3314.8,3314.7,3.01686]
[1734979751835,1.86800901,3315.0,3314.8,3.01669]
[1734979751836,0.2,3315.0,3314.8,3.01669]
[1734979751998,0.2,3315.0,3314.9,3.01668]
[1734979752199,3.86090872,3315.8,3315.4,3.01618]
[1734979752200,0.2,3315.6,3315.4,3.01618]
[1734979752445,1.24457417,3315.8,3314.9,0.773]
[1734979752814,0.2,3315.5,3315.1,3.01648]
[1734979753015,0.2,3315.5,3314.9,0.773]
[1734979753205,0.2,3315.7,3314.9,0.773]
[1734979753402,2.31036801,3316.2,3314.9,3.78966]
[1734979753604,5.32587801,3316.2,3314.9,3.78966]
[1734979753922,0.03009522,3316.1,3314.9,0.773]
[1734979754136,3.01633,3315.3,3314.4,0.7911]
[1734979754357,0.8043,3314.9,3313.9,1.092867]
[1734979754652,6.82101,3314.9,3313.9,0.7911]
[1734979754860,3.8043,3314.9,3313.9,3.80868]
[1734979755153,0.8043,3314.9,3313.9,3.80868]
[1734979755305,3.0,3315.3,3314.2,3.01723]
[1734979755507,0.03009522,3315.2,3313.9,0.7911]
[1734979755823,3.01664,3315.0,3313.9,0.7911]
[1734979756003,3.01664,3315.0,3314.0,0.0439727]
[1734979756408,3.0,3315.1,3314.0,0.0439727]
[1734979756636,3.0,3315.3,3313.9,0.7911]
[1734979756961,1.3806,3315.1,3314.1,0.04391053]
[1734979757170,0.8306,3314.7,3314.0,0.0439727]
[1734979757330,0.7867,3313.9,3313.0,0.7936]
[1734979757532,3.01779,3313.7,3312.8,1.05971974]
[1734979757768,0.81679522,3313.9,3312.8,1.37084573]
[1734979757965,0.7867,3313.9,3312.8,0.31112599]
[1734979758476,3.80429,3313.9,3312.8,0.31112599]
[1734979759577,0.03009522,3313.8,3312.6,0.7986]
[1734979759945,0.03009522,3313.8,3312.2,0.7654]
[1734979759946,3.0,3313.4,3312.2,0.7654]
[1734979760152,0.03009522,3313.3,3312.3,3.01904]
[1734979760569,3.0,3313.5,3312.4,3.01894]
[1734979760769,3.0,3313.8,3312.4,3.01894]
[1734979760770,0.58009522,3313.7,3312.4,3.01894]
[1734979760936,0.35800952,3313.6,3312.4,3.397374]
[1734979761139,3.01804,3313.5,3312.4,0.378434]
[1734979761368,3.0,3313.4,3312.2,0.7654]
[1734979761574,3.35800952,3313.6,3312.6,3.01874]
[1734979761736,3.0,3313.7,3312.7,3.01865]
[1734979761938,3.0,3313.8,3312.7,3.01865]
[1734979762150,3.0,3313.7,3312.2,0.7654]
[1734979762349,0.03009522,3313.7,3312.2,0.7654]
[1734979762565,0.03009522,3313.7,3312.3,0.378456]
[1734979762754,3.01793,3313.6,3312.5,3.01886]
[1734979763083,3.01805,3313.4,3312.3,3.397486]
[1734979763236,3.58009522,3313.8,3312.4,3.01894]
[1734979763638,3.01798,3313.5,3312.4,3.01894]
[1734979763842,3.319778,3313.5,3312.4,3.4352196]
[1734979764149,0.301798,3313.5,3312.5,3.01886]
[1734979765784,3.319788,3313.5,3312.4,0.4162796]
[1734979765973,0.7739,3313.1,3312.2,0.7654]
[1734979766342,0.7739,3313.1,3312.2,3.78453]
[1734979768577,0.03009522,3313.0,3311.8,0.8154]
[1734979768894,3.0,3312.8,3311.7,0.1685579]
[1734979769183,3.01869,3312.7,3311.7,0.1685579]
[1734979769382,0.301869,3312.6,3311.7,0.1685579]
[1734979770191,0.8041,3312.5,3311.7,0.1685579]
[1734979770419,3.0,3312.3,3311.7,0.1685579]
[1734979771069,3.0,3312.3,3311.8,0.0450343]
[1734979771462,3.0,3312.3,3311.7,0.1685579]
[1734979771642,0.8041,3312.5,3311.9,0.04497204]
[1734979771840,0.8041,3312.5,3311.8,0.0450343]
[1734979772084,0.8041,3312.8,3311.9,3.01937]
[1734979772284,1.24457417,3313.0,3311.7,4.03369653]
[1734979772478,0.03009522,3312.9,3312.0,0.0449098]
[1734979772727,3.04861522,3312.9,3311.7,0.9839579]
[1734979772926,0.45941416,3312.9,3312.1,0.04484755]
[1734979773082,4.26303417,3313.0,3311.7,1.01415028]
[1734979773279,3.01846,3313.0,3312.2,0.04478531]
[1734979773523,0.03009522,3312.9,3311.7,0.9839579]
[1734979773727,3.01862,3312.8,3311.7,4.0035479]
[1734979773930,3.0,3312.9,3311.9,3.01938]
[1734979774111,1.24457417,3313.1,3312.1,3.01922]
[1734979774312,1.24457417,3313.1,3312.3,3.01902]
[1734979774525,3.0,3313.1,3312.2,0.04478531]
[1734979774728,0.03009522,3313.0,3312.4,0.04466085]
[1734979774938,0.8041,3313.2,3312.3,0.04472308]
[1734979775115,0.8041,3313.2,3312.3,3.01904]
[1734979775320,0.8041,3313.2,3312.3,3.320944]
[1734979775523,0.8041,3313.2,3312.4,0.04466085]
[1734979775848,3.8041,3313.2,3312.4,0.04466085]
[1734979776196,3.82233,3313.2,3312.4,0.04466085]
[1734979776403,3.0,3313.1,3312.1,3.01919]
[1734979776605,0.682233,3313.1,3312.2,3.06384531]
[1734979776899,0.8041,3313.2,3312.3,3.78311]
[1734979777100,0.8041,3313.2,3312.3,3.01901]
[1734979777304,3.8041,3313.2,3312.4,0.04463486]
[1734979777547,3.8041,3313.2,3312.2,0.7641]
[1734979777849,4.51641922,3313.2,3312.2,0.7641]
[1734979778282,1.51641922,3313.2,3312.3,0.04469709]
[1734979778543,3.0,3313.1,3312.3,0.04469709]
[1734979778718,3.01841,3313.0,3312.3,0.04469709]
[1734979779047,3.82235,3313.2,3312.4,0.04464006]
[1734979779252,3.82235,3313.2,3311.9,0.7528]
[1734979779253,3.0,3313.1,3311.9,0.7528]
[1734979779560,3.0,3313.1,3312.2,3.01913]
[1734979779757,3.0,3313.1,3311.9,0.7528]
[1734979779758,0.773,3313.6,3312.3,0.03018706]
[1734979779911,0.773,3313.6,3312.6,0.8154]
[1734979780452,0.03009522,3313.5,3312.7,3.06305858]
[1734979780631,0.80309522,3313.6,3312.7,0.04445858]
[1734979780820,0.80309522,3313.6,3312.6,0.8154]
[1734979780821,3.79088,3313.6,3312.6,0.8154]
[1734979781003,4.48423584,3313.6,3312.6,0.8154]
[1734979781205,4.48423584,3313.6,3312.7,0.04433384]
[1734979781405,1.46635584,3313.6,3312.7,0.04433384]
[1734979781950,0.03009522,3313.5,3312.7,0.04433384]
[1734979782308,0.773,3313.6,3312.7,0.04433384]
[1734979783029,3.04808522,3313.5,3312.7,0.04433384]
[1734979783776,3.01808,3313.4,3312.7,0.04433384]
[1734979784534,0.773,3313.6,3312.7,0.04433384]
[1734979784778,3.01771,3313.8,3312.7,0.04433384]
[1734979784981,3.01771,3313.8,3312.8,3.0185]
[1734979785351,3.01777,3313.7,3312.9,0.04417303]
[1734979785669,0.03009522,3313.6,3312.9,0.04417303]
[1734979786029,3.04802522,3313.6,3312.9,0.04417303]
[1734979786234,3.0181,3313.4,3312.6,0.8154]
[1734979786464,3.0181,3313.4,3313.0,0.04405367]
[1734979786658,3.0181,3313.4,3312.6,0.8154]
[1734979786863,3.0181,3313.4,3313.1,0.04399146]
[1734979787089,3.0181,3313.4,3312.6,0.8154]
[1734979787279,3.0181,3313.4,3313.2,0.04392926]
[1734979787481,3.43616977,3313.4,3312.6,0.8154]
[1734979787691,3.43616977,3313.4,3313.3,0.04386706]
[1734979787976,3.43616977,3313.4,3312.6,0.8154]
[1734979788393,0.03009522,3313.3,3312.7,0.04277807]
[1734979788541,3.01841,3313.1,3312.7,0.04277807]
[1734979788745,3.320251,3313.1,3312.1,0.7843]
[1734979788958,3.320251,3313.1,3312.8,0.04271585]
[1734979789289,1.13250252,3313.5,3312.1,0.7843]
[1734979789449,3.84567,3313.5,3312.9,0.04265364]
[1734979789651,3.84567,3313.5,3312.5,3.01883]
[1734979789851,3.84567,3313.5,3313.0,0.04259143]
[1734979790089,3.84567,3313.5,3312.5,3.01883]
[1734979790262,3.01813,3313.3,3313.1,0.04265914]
[1734979790461,3.320043,3313.2,3312.2,0.7843]
[1734979790679,3.01823,3313.2,3312.2,0.7843]
[1734979790896,3.01823,3313.2,3312.3,0.04308412]
[1734979791416,3.84602,3313.1,3312.3,0.04308412]
[1734979791569,3.01843,3313.0,3312.1,0.7802]
[1734979791906,2.622782,3313.7,3312.2,0.04314636]
[1734979792111,3.01804,3313.5,3312.4,3.01887]
[1734979792269,3.04816522,3313.4,3312.4,3.01887]
[1734979792470,0.03009522,3313.4,3312.5,0.04298045]
[1734979792669,3.0184,3313.1,3312.1,0.7802]
[1734979792920,0.8259,3313.0,3312.6,0.04291823]
[1734979793069,1.21033,3313.0,3312.1,0.7802]
[1734979793265,3.84437,3313.0,3312.1,0.7802]
[1734979793481,3.84437,3313.0,3312.2,0.04316715]
[1734979793681,3.01853,3312.9,3312.2,0.04316715]
[1734979793893,0.85599522,3313.0,3312.2,0.04316715]
[1734979794111,0.85599522,3313.0,3312.1,0.7802]
[1734979794732,1.47560572,3313.0,3312.1,0.7802]
[1734979794891,4.49405572,3313.0,3312.1,0.7802]
[1734979795395,4.49405572,3313.0,3312.2,0.04330228]
[1734979796033,1.47560572,3313.0,3312.2,0.04330228]